Cogmind - Beta 13 @@@ ROGUE MODE // 2024.05.13 @ 18:07:14 Player: N.N.O.G.er Result: Self-destructed Performance ------------- Evolutions (2) 1000 Regions Visited (3) 600 Robots Destroyed (56) 280 Value Destroyed (1322) 1322 Prototype IDs (11) 220 Alien Tech Used (0) 0 Bonus (4) 4 TOTAL SCORE: 3426 Bonus ------- High Alert Combat Kills 4 Cogmind --------- Core Integrity 300/550 Matter 42/300 Energy 55/100 System Corruption 0% Temperature Cool (24) Movement Core (700) Ox13 Location -8/Materials Parts ------- > --- POWER (1) -------- (None) > --- PROPULSION (4) --- Armored Wheel > --- UTILITY (4) ------ High-capacity Storage Unit Makeshift Hacking Suite > --- WEAPON (2) ------- (None) > --- INVENTORY (20) --- Armored Wheel Armored Wheel Armored Wheel Large Storage Unit Structural Scanner Sensor Array Improved Utility Shielding Makeshift System Shield Enhanced Autogun Rocket Launcher Rocket Launcher Rocket Launcher Rocket Launcher Rocket Launcher Flamer Flamer Enhanced Flamer Makeshift Hammer Peak State ------------ > --- POWER ------------ Ion Engine > --- PROPULSION ------- Spiked Treads Subdweller Monowheel > --- UTILITY ---------- Large Storage Unit Improved Utility Shielding Makeshift Hacking Suite Power Bank > --- WEAPON ----------- Subdweller Laser Subdweller Beam Cannon > --- INVENTORY -------- Medium Storage Unit Structural Scanner Sensor Array Makeshift Salvage Targeting Computer Makeshift Thermal Plating Makeshift System Shield Cobbler Unit Improved Light Cannon Battle Cannon Dirty Datajack Flamer Flamer Enhanced Flamer Makeshift Hammer [Rating: 30] Favorites ----------- Power Ion Engine Engine Ion Engine Propulsion Light Treads Treads Light Treads Wheel Subdweller Monowheel Utility Large Storage Unit Device Seismic Detector Storage Large Storage Unit Processor Visual Processing Unit Hackware Makeshift Hacking Suite Protection Medium Armor Plating Weapon Improved Light Cannon Energy Gun Subdweller Laser Energy Cannon Subdweller Beam Cannon Ballistic Gun Assault Rifle Ballistic Cannon Improved Light Cannon Launcher Rocket Launcher Special Weapon Mining Laser Special Melee Weapon Dirty Datajack Build | -11 -10 -10 -8 ------- Run | Yrd Mat Sub Mat Slots Evolved 4 | . . . 4 Power . | . . . . Propulsion 2 | . . . 2 Utility 2 | . . . 2 Weapon . | . . . . Parts Attached 90 | 7 24 36 23 Power 5 | 1 1 3 . Engine 5 | 1 1 3 . Core . | . . . . Reactor . | . . . . Propulsion 13 | 2 . 6 5 Treads 6 | 2 . 1 3 Leg . | . . . . Wheel 7 | . . 5 2 Hover . | . . . . Flight . | . . . . Utility 36 | 2 17 9 8 Device 12 | 1 4 4 3 Storage 8 | 1 5 1 1 Processor 1 | . 1 . . Hackware 1 | . . . 1 Protection 14 | . 7 4 3 Artifact . | . . . . Weapon 36 | 2 6 18 10 Energy Gun 2 | 1 . . 1 Energy Cannon 1 | . . . 1 Ballistic Gun 2 | 1 . . 1 Ballistic Cannon 21 | . 6 11 4 Launcher 2 | . . . 2 Special Weapon 7 | . . 7 . Impact Weapon . | . . . . Slashing Weapon . | . . . . Piercing Weapon . | . . . . Special Melee Weapon 1 | . . . 1 Unidentified Prototypes 1 | . . . 1 Parts Lost 18 | . . 9 9 Power 3 | . . 2 1 Propulsion 6 | . . 3 3 Utility 5 | . . 3 2 Weapon 4 | . . 1 3 Highest Loss Streak 7 | . . 3 7 To Critical Strikes . | . . . . Average Slot Usage (%) 86 | . 96 87 69 Engine 12 | . 13 13 3 Treads 18 | . 28 17 11 Wheel 3 | . . 4 8 Device 5 | . 11 3 7 Storage 12 | . 12 13 7 Protection 5 | . 2 6 7 Ballistic Cannon 23 | . 25 26 8 Naked Turns . | . . . . Heaviest Build 54 | 12 32 40 54 Greatest Support 62 | 40 40 40 62 Greatest Overweight (x) 12 | 3 3 12 4 Average Overweight (x) . | . . . 1 Largest Inventory Capacity 20 | 8 15 15 20 Average Capacity 13 | 7 9 14 16 Most Carried 20 | 5 9 15 20 Average Carried 12 | 3 7 14 15 Final Capacity 20 | 8 15 15 20 Final Carried 18 | 5 9 15 18 Class Distribution -------------------- 88% | Mutant 11% | Derelict-Mutant Dominant Class ---------------- Mutant | -10/Materials Mutant | -10/Subcaves Derelict-Mutant | -8/Materials Resources | -11 -10 -10 -8 ----------- Run | Yrd Mat Sub Mat Matter Collected 2119 | 281 356 1119 363 Remotely . | . . . . Salvage Created 1255 | 139 294 373 449 Parts 95 | 9 24 39 23 Haulers Intercepted 3 | . 2 . 1 Recyclers Shooed . | . . . . Parts Field Recycled . | . . . . Retrieved Matter . | . . . . Parts Self-Destructed 18 | . . 18 . Prevented . | . . . . Kills | -11 -10 -10 -8 ------- Run | Yrd Mat Sub Mat Combat Hostiles Destroyed 39 | . 9 17 13 Cannons 31 | . 9 17 5 AOE 8 | . . . 8 Classes Destroyed 11 | 2 6 1 2 Worker 3 | . 2 . 1 Builder 2 | . 2 . . Tunneler 4 | 3 . . 1 Hauler 3 | . 2 . 1 Recycler 2 | 1 . . 1 Watcher 3 | . 2 . 1 Swarmer 14 | . 6 4 4 Cutter 1 | . . . 1 Grunt 10 | . 3 2 5 Sentry 3 | . . . 3 Subdweller 11 | . . 11 . Best Kill Streak 4 | 3 4 4 4 Combat Bots Only 4 | . 3 4 4 Max Kills in Single Turn 4 | 1 2 1 4 Gunslinging . | . . . . Exploded 4 | . . . 4 Melee . | . . . . Uniques/NPCs Destroyed . | . . . . Combat | -11 -10 -10 -8 -------- Run | Yrd Mat Sub Mat Hostile Shots Fired 231 | . 51 88 92 Missed 68 | . 17 25 26 Damage Taken 2840 | . 292 1283 1265 Core 285 | . 14 21 250 Absorbed by Shields . | . . . . Redirected to Shielding 21 | . . . 21 Ignored by Resistances 44 | . . . 44 Core Remaining (%) 93 | 100 . 86 . Volleys Fired 188 | 8 37 104 39 Largest 2 | 2 2 2 2 Hottest 140 | 60 78 139 140 Shots Fired 310 | 16 66 164 64 Gun 23 | 16 . . 7 Cannon 246 | . 66 130 50 Launcher 7 | . . . 7 Special 34 | . . 34 . Kinetic 237 | 8 66 130 33 Thermal 66 | 8 . 34 24 Explosive 7 | . . . 7 Electromagnetic . | . . . . Robot Hit Streak 10 | 5 7 10 8 Robot Miss Streak 5 | 2 5 2 2 Penetration Max . | . . . . Secondary Targets . | . . . . Shots Hit Robots 171 | 10 32 83 46 Core Hits 84 | 5 17 33 29 Critical Kills . | . . . . Critical Parts Destroyed . | . . . . Critical Strikes 7 | . 1 5 1 Blast 7 | . 1 5 1 Melee Attacks 3 | . . . 3 Impact . | . . . . Slashing . | . . . . Piercing 3 | . . . 3 Sneak Attacks . | . . . . Combat Hostiles . | . . . . Follow-up Attacks . | . . . . Damage Inflicted 4227 | 116 686 1726 1699 Guns 216 | 116 . . 100 Cannons 3261 | . 686 1726 849 Explosions 726 | . . . 726 Melee 5 | . . . 5 Ramming 19 | . . . 19 Kinetic 3022 | 51 686 1726 559 Thermal 455 | 65 . . 390 Explosive 726 | . . . 726 Electromagnetic . | . . . . Impact . | . . . . Slashing . | . . . . Piercing 5 | . . . 5 Highest Corruption 15 | . 2 15 . Average Corruption 6 | . 1 7 . Corruption Purged . | . . . . Corruption Blocked . | . . . . Effects 127 | . 10 117 . Message Errors 34 | . 2 32 . Matter Fused 31 | . 1 30 . Heat Flow Errors 15 | . 1 14 . Energy Discharges 15 | . 2 13 . Parts Rejected 1 | . . 1 . Parts Fused 4 | . 1 3 . Data Loss (minor) 11 | . 1 10 . Data Loss (major) 8 | . 1 7 . Misfires 3 | . 1 2 . Alerts 4 | . . 4 . Weapon Failures 1 | . . 1 . Overload Shots . | . . . . Overflow Damage 28 | . 20 . 8 Projectiles 23 | . 20 . 3 Explosions 5 | . . . 5 Melee . | . . . . Knockbacks 29 | . 3 17 9 Impact . | . . . . Kinetic 28 | . 3 17 8 Secondary 1 | . . . 1 Self-Inflicted Damage 50 | . . . 50 Shots 2 | . . . 2 Rammed 4 | . . . 4 Targets Rammed 4 | . . . 4 Kicked . | . . . . Crushed . | . . . . Highest Temperature 258 | . 174 253 258 Average Temperature 76 | . 53 97 88 Received Heat Transfer 633 | . 30 270 333 Siege Activations . | . . . . Robots Corrupted . | . . . . Combat Hostiles . | . . . . Parts Fried . | . . . . Impact Corruptions . | . . . . Robots Melted . | . . . . Combat Hostiles . | . . . . Parts Melted 3 | . . 1 2 Heat Transferred 645 | 150 . . 495 Parts Sabotaged . | . . . . Parts Stolen . | . . . . Parts Stripped . | . . . . Power Chain Reactions . | . . . . Alert | -11 -10 -10 -8 ------- Run | Yrd Mat Sub Mat Peak Influence 392 | 20 178 . 392 Initial 187 | . 13 . 187 Average 111 | 6 65 . 208 Maximum Alert Level 1 | . . . 1 Low Security (%) 86 | 100 100 . 61 Level 1 13 | . . . 38 Level 2 . | . . . . Level 3 . | . . . . Level 4 . | . . . . Level 5 . | . . . . High Security . | . . . . Max Security . | . . . . Squads Dispatched 6 | . 1 . 5 Investigation . | . . . . Extermination . | . . . . Reinforcement 3 | . 1 . 2 Assault 1 | . . . 1 Garrison 2 | . . . 2 Intercept . | . . . . Searches Triggered . | . . . . Construction Impeded . | . . . . Haulers Reinforced . | . . . . Active Scanning Responses . | . . . . Cargo Convoy Interrupts . | . . . . Stealth | -11 -10 -10 -8 --------- Run | Yrd Mat Sub Mat Distress Signals 2 | . 1 . 1 Communications Jammed . | . . . . Distress Signals . | . . . . Times Spotted 57 | . 18 19 20 Peak Tracking Total 6 | . 4 6 4 Tactical Retreats 4 | . . 3 1 Traps | -11 -10 -10 -8 ------- Run | Yrd Mat Sub Mat Traps Triggered 3 | . 2 1 . Indirectly . | . . . . Trap Hack Attempts . | . . . . Triggered . | . . . . Disarmed . | . . . . Reprogrammed . | . . . . Reused . | . . . . Traps Extracted . | . . . . Installed . | . . . . Triggered . | . . . . Machines | -11 -10 -10 -8 ---------- Run | Yrd Mat Sub Mat Machines Disabled 5 | . 1 1 3 Max in Single Turn 1 | . 1 1 1 Garrison Access 1 | . . . 1 Machines Repaired . | . . . . Machines Dismantled . | . . . . Machines Sabotaged . | . . . . Overloaded Fab Kills . | . . . . Hacking | -11 -10 -10 -8 --------- Run | Yrd Mat Sub Mat Machines Accessed 10 | . 7 1 2 Terminals 7 | . 5 . 2 Fabricators . | . . . . Repair Stations . | . . . . Recycling Units 2 | . 2 . . Scanalyzers . | . . . . Garrison Access . | . . . . Total Hacks 23 | . 16 1 6 Successful 13 | . 9 1 3 Failed 10 | . 7 . 3 Catastrophic . | . . . . Database Lockouts . | . . . . Manual 15 | . 12 . 3 Terminals 19 | . 13 . 6 Fabricators . | . . . . Repair Stations . | . . . . Recycling Units 3 | . 3 . . Scanalyzers . | . . . . Garrison Access . | . . . . Terminal Hacks 7 | . 5 1 1 Record 1 | . 1 . . Robot Analysis 3 | . 3 . . Registered Prototypes 1 | . . . 1 Zone Layout 1 | . 1 . . Derelict Proto ID Bank 1 | . . 1 . Fabricator Hacks . | . . . . Repair Station Hacks . | . . . . Recycling Unit Hacks 2 | . 2 . . Retrieve Components 2 | . 2 . . Scanalyzer . | . . . . Garrison Access Hacks . | . . . . Unauthorized Hacks 4 | . 2 . 2 Terminals 3 | . 1 . 2 Assimilate 1 | . 1 . . Botnet 2 | . . . 2 Fabricators . | . . . . Repair Stations . | . . . . Recycling Units 1 | . 1 . . Mask 1 | . 1 . . Scanalyzers . | . . . . Garrison Access . | . . . . Data Cores Recovered . | . . . . Used . | . . . . Hacking Detections 8 | . 6 . 2 Full Trace Events 1 | . 1 . . Feedback Events . | . . . . Feedback Blocked . | . . . . Robot Schematics Acquired . | . . . . Robots Built . | . . . . Authchips . | . . . . Time . | . . . . Total Robot Build Rating . | . . . . Part Schematics Acquired . | . . . . Parts Built . | . . . . Authchips . | . . . . Time . | . . . . Total Part Build Rating . | . . . . Parts Repaired . | . . . . Time . | . . . . Parts Recycled . | . . . . Recycled Matter . | . . . . Retrieved Matter . | . . . . Retrieved Components 5 | . 5 . . Parts Scanalyzed . | . . . . Part Schematics Acquired . | . . . . Parts Damaged . | . . . . Bothacking | -11 -10 -10 -8 ------------ Run | Yrd Mat Sub Mat Used RIF Installer . | . . . . Robots Hacked . | . . . . Non-combat . | . . . . Combat . | . . . . Robot Hacks Applied . | . . . . Relay Couplers Released . | . . . . Fabnet Peak Effective % . | . . . . Robots Rewired . | . . . . Allies Hacked . | . . . . Hacks Repelled . | . . . . Allies | -11 -10 -10 -8 -------- Run | Yrd Mat Sub Mat Total Allies 1 | . 1 . . Largest Group 1 | . 1 1 . Highest-Rated Group 10 | . 10 10 . Highest-Rated Ally 10 | . 10 10 . Total Orders . | . . . . Ally Attacks . | . . . . Total Damage . | . . . . Kills . | . . . . Allies Corrupted . | . . . . Allies Melted . | . . . . Intel | -11 -10 -10 -8 ------- Run | Yrd Mat Sub Mat Robot Analysis Total 3 | . 3 . . Derelict Logs Recovered 2 | . . 2 . Drone Launches . | . . . . Drone Recoveries . | . . . . Exploration | -11 -10 -10 -8 ------------- Run | Yrd Mat Sub Mat Turns Passed 6621 | 175 1183 4523 740 Spaces Moved 3318 | 115 680 2157 366 Core 170 | 73 91 6 . Treads 2096 | 42 589 1432 33 Legs . | . . . . Wheels 1052 | . . 719 333 Hover . | . . . . Flight . | . . . . Fastest Speed 50 | 50 50 110 105 Average Speed 170 | 117 145 185 138 Slowest Speed 650 | 200 200 650 260 Overloaded Moves . | . . . . Propulsion Burnouts . | . . . . Robots Hopped . | . . . . Cave-ins Triggered 1 | . . 1 . Exploration Rate (%) 51 | 6 91 84 24 Regions Visited 3 Branch Regions 1 Pre-discovered Areas . | . . . . Known Exits Taken . | . . . . Unknown Exits Taken 3 | 1 1 1 . Scrap Searched 14 | . . 14 . Spaces Dug 10 | . 1 8 1 Terrain Destroyed 44 | . 2 11 31 Melee . | . . . . Projectile 19 | . 2 11 6 AOE 25 | . . . 25 Terrain Rammed . | . . . . Walls Destroyed . | . . . . Machines Disabled . | . . . . Actions | -11 -10 -10 -8 --------- Run | Yrd Mat Sub Mat Total 3911 | 136 808 2430 537 Wait 193 | . 36 89 68 Move 3314 | 114 679 2155 366 Hop . | . . . . Pick Up 68 | 7 14 29 18 Fast Attach 30 | 5 8 12 5 Attach 21 | 2 5 5 9 Detach 5 | . 4 . 1 Swap 39 | . 11 19 9 Drop 45 | . 14 16 15 Fire 188 | 8 37 104 39 Melee 3 | . . . 3 Ram 4 | . . . 4 Kick . | . . . . Crush . | . . . . Escape Stasis 1 | . . 1 . Rewire . | . . . . Trap . | . . . . Miscellaneous . | . . . . Route ------- -11/Scrapyard -10/Materials (discovered 5 exits: [*Mat x3] / [*Min] / *Sub) -10/Subcaves (discovered 2 exits: *Mat x2) -8/Materials History --------- Turn | Location | Event 5 | -11/Scrapyard | Discovered new exit (range 16) 176 | -11/Scrapyard | Entered Materials 189 | -10/Materials | Discovered new exit (range 15) 305 | -10/Materials | Build established: Mutant 525 | -10/Materials | Discovered new exit (range 7) 836 | -10/Materials | Discovered new exit (range 12) 1022 | -10/Materials | Discovered new exit (range 13) 1346 | -10/Materials | Discovered new exit (range 8) 1359 | -10/Materials | Entered Subcaves 1359 | -10/Subcaves | Accompanied by 1 ally 1596 | -10/Subcaves | Learned 4 Materials zone layouts 1797 | -10/Subcaves | Shifting Twisted Machinery released Piercing Trap 1824 | -10/Subcaves | Shifting Twisted Machinery released Sub. Laser 2095 | -10/Subcaves | Discovered new exit (range 4) 2531 | -10/Subcaves | Lost 3 parts (2n1u) 3017 | -10/Subcaves | Visited Clippyterm 3511 | -10/Subcaves | A swath of the cavern ceiling suddenly collapsed 3640 | -10/Subcaves | Discovered new exit (range 13) 3851 | -10/Subcaves | Crushed by falling debris 3852 | -10/Subcaves | System corruption reached 10% 3882 | -10/Subcaves | Lost 3 parts (1p1n1w) 5565 | -10/Subcaves | Visited 4L-MR0's lab 5579 | -10/Subcaves | Found Power Bank 5581 | -10/Subcaves | Attached Power Bank, gained temporary slots: Power x3 5736 | -10/Subcaves | A swath of the cavern ceiling suddenly collapsed 5882 | -10/Subcaves | Entered Materials 5882 | -8/Materials | Evolved 4 slots: Propulsion x2, Utility x2 6243 | -8/Materials | Build established: Derelict-Mutant 6622 | -8/Materials | Self-destructed Last Messages --------------- 06615_ Splicing C-17 Slicer... Deactivating 1 weapon system. 06616_ U-05 Engineer builds a Wall. 06618_ Acquired Adv. Treads. 06618_ U-05 Engineer builds a Wall. 06619_ U-05 Engineer lays Concrete. 06622_ C-17 Slicer Lgt. Nuclear Core critical resonance detonation. 06622_ Y-45 Defender Unknown Engine critical resonance detonation. 06622_ Unknown Device melted. 06622_ Y-45 Defender destroyed. 06622_ C-17 Slicer destroyed. 06622_ Adv. Treads destroyed. 06622_ Lgt. Treads destroyed. 06622_ ALERT: Garrison Access compromised, dispatching assault squad. 06622_ Garrison Access disabled. 06622_ Dirty Datajack destroyed. 06622_ U-05 Engineer builds a Wall. Map ----- +----------------------------------------------------+ | ????## #################### # """ # | | ????## ####### #??## # """ + | | ?????#######+### # """"" #??## # """ ##### | | ????????# # """"" #??## # #?# | | ????????# + """"" #??## #######?# | | ????????# # """"" #??## ##????### | | ????????######## # """"" #??## % ##????##### | | ???????????????####### """"" #??##== # ??? #### | | ?????????????????????# """"" #??## | =# ? ## | | ?????????????????????# #??##]* # """ ## | | ?????????????????????#########"#?##! + """ ## | | ????????????????????????????########## # """ ## | | ????????????????????????????########## # ## | | ????????????????????????????## = !# ######### | | ????????????????????????????## # ########### | | ????????????????????????????## # #########?? | | ????????????????????????????## = [+ | | ????????????????????########## !# #########?# | | ????????????????????##################+#########?# | | ????????????????????## / ! ### ##????? | | ????????????????????## ! ###= ##????? | | ????????????????????## ### ##????? | | ????????????????????## ### """ """ ##????? | | ????????????????????## " ### """ """ # ????? | | ????????????????????## " %= ## """ """ # ????? | | ????????????????????## @[ ! + # ????? | | ???????????????? + == ## # ????? | | ????????????? ######### ##u### #####+#+# ????? | | ????????????? #### # ## # ????? | | ????????????? + + [ +?????? | | ?????????????## =[= # #?????? | | ?????????????## [% # ########???????? | | ?????????????## *% = # # ########???????? | | ?????????????## """=""" # u# #####??????????????? | | ?????????????## """ """ # ###??????????????????? | | ?????????????## """ """ # ##???????????????????? | | ?????????????## # ##???????????????????? | | ?????????????#######+#### ##???????????????????? | | ????????????? # ??????????????????? | | ??????????????????? ? # ??????????????????? | | + # """ #??????????? | | """ # + """ #??????????? | | """"" # # """ #??????????? | | """"" ##### ######### # #??????????? | | """"" #??##/######### ##########????#?????? | | """ #??# # #????????### ###???? | | #??# # ########## #???? | | ##########??# # " ##??? | | ????????????#""" """ + "T ??? | | ????????????#"R """ # ##??? | +----------------------------------------------------+ Best States ------------- Heat Dissipation 31 Energy Generation 15 Energy Capacity 250 Matter Stores 300 Matter Capacity 300 Sight Range 18 Robot Scan Range 14 Terrain Scan Density 10 Armor Coverage 450 Resistance: TH 10 Utility Shielding 66 Evasion (%) 50 Recoil Reduction 3 Offensive Hacking 11 Item Schematics ----------------- None Robot Schematics ------------------ None Fabricated ------------ Nothing Alien Tech Used ----------------- None Achievements -------------- None Challenges ------------ None Game ------ Seed WeaponHeavyBiocell Manual? 0 Play Time 00:50:26 Cumulative 91.1 hours Start 2024.05.13 @ 17:14:55 End 2024.05.13 @ 18:07:14 Sessions 1 Manual Loads 0 Difficulty Rogue Special Mode None Game No. 46 Rogue 46 Adventurer 0 Explorer 0 Win Type - Total 1 Types 0/0/1/0/0/0/0/0/0 Lore% 54 Gallery% 64 Achievement% 48 Wizard Run 0 Options --------- Layout 1 ASCII 0 Keyboard 0 Movement Mouse Keybinds 0 Fullscreen 1 Font 24/Smallcaps Map View 50x35 Zoom Use 0% Tactical HUD 1 Map Filters NONE Filters NONE Steam 1 RUN: c63ba3b8-2b84-4b88-b132-79721dbcc534